bitfinex/quotes_ETHUSD_20250815
["timestamp","ask_amount","ask_price","bid_price","bid_amount"]
[1755231034385,0.9183,4645.9,4645.8,3.392]
[1755231034764,0.9183,4645.9,4645.8,0.108]
[1755231034966,0.9183,4645.9,4645.8,3.284]
[1755231035166,0.9183,4645.9,4645.8,3.392]
[1755231036108,0.9183,4645.9,4645.8,13.392]
[1755231036604,0.9183,4645.9,4645.8,10.108]
[1755231036811,0.9183,4645.9,4645.8,13.392]
[1755231037171,0.9183,4645.9,4645.8,0.108]
[1755231038717,0.9183,4646.2,4645.8,0.108]
[1755231038930,2.15209931,4646.7,4646.4,0.108]
[1755231039116,2.15209931,4646.7,4646.5,3.283]
[1755231039285,2.15209931,4646.7,4646.6,3.283]
[1755231039484,3.07039931,4646.7,4646.6,3.283]
[1755231040218,2.15215753,4646.5,4646.4,3.391]
[1755231040403,3.07045753,4646.5,4646.4,3.283]
[1755231041207,3.07045753,4646.5,4646.4,3.391]
[1755231041727,3.07045753,4646.5,4646.4,3.283]
[1755231042997,2.15234282,4646.1,4646.0,0.108]
[1755231043435,2.15234282,4646.1,4646.0,3.391]
[1755231043729,0.9183,4646.1,4646.0,3.391]
[1755231046015,3.07064282,4646.1,4646.0,3.391]
[1755231046422,0.9183,4646.1,4646.0,3.283]
[1755231046942,0.9183,4646.6,4646.0,3.282]
[1755231047101,0.9183,4646.6,4646.0,3.39]
[1755231047301,2.15220666,4646.4,4646.0,3.282]
[1755231047630,3.07055936,4646.3,4646.0,3.282]
[1755231047838,0.9183,4646.2,4646.1,3.282]
[1755231047993,0.4617283,4647.0,4646.1,3.282]
[1755231048198,0.4617283,4647.0,4646.9,0.1072]
[1755231048199,2.15195227,4647.0,4646.9,0.1072]
[1755231048421,2.15195227,4647.0,4646.9,3.3902]
[1755231048623,3.07025227,4647.0,4646.9,3.3902]
[1755231054549,0.1092,4647.5,4646.9,3.3902]
[1755231054753,0.002,4647.5,4647.0,0.55]
[1755231055051,0.002,4647.5,4647.2,2.15182727]
[1755231055254,0.002,4647.5,4646.9,10.0]
[1755231055540,0.002,4647.5,4647.1,2.15187921]
[1755231055925,0.002,4647.5,4647.1,0.02151879]
[1755231056124,0.002,4647.5,4647.0,3.292]
[1755231056325,0.002,4647.5,4647.1,3.291]
[1755231057027,0.002,4647.5,4647.2,10.0]
[1755231058141,0.002,4647.5,4647.2,2.15182654]
[1755231058330,0.002,4647.5,4647.1,13.291]
[1755231058535,0.002,4647.5,4647.1,15.44287491]
[1755231059519,0.4814,4647.4,4647.2,3.291]
[1755231059843,0.002,4647.5,4647.2,3.291]
[1755231060045,0.002,4647.5,4647.2,13.291]
[1755231060246,2.15178705,4647.3,4647.2,10.0]
[1755231060447,3.1130041,4647.3,4647.2,10.0]
[1755231060665,16.6123444,4647.3,4647.2,10.0]
[1755231060966,17.07488183,4647.3,4647.2,10.0]
[1755231061342,2.15194315,4647.0,4646.7,3.292]
[1755231061548,2.15197228,4646.9,4646.8,3.292]
[1755231062333,0.002,4647.5,4646.8,3.292]
[1755231062533,2.15178705,4647.3,4646.8,3.292]
[1755231062738,2.61467929,4647.3,4646.8,3.292]
[1755231062967,2.15174125,4647.4,4646.8,3.292]
[1755231063172,2.15193029,4647.0,4646.6,10.0]
[1755231063376,2.15193029,4647.0,4646.7,3.292]
[1755231063581,0.4814,4647.0,4646.7,3.292]
[1755231063787,0.4814,4646.9,4646.6,10.0]
[1755231064080,0.4814,4646.9,4644.9,2.15289074]
[1755231064081,2.15211633,4646.6,4646.5,3.292]
[1755231064263,2.15211633,4646.6,4646.4,3.292]
[1755231064574,2.15215753,4646.5,4646.4,3.4]
[1755231064941,0.9448,4646.6,4646.4,3.4]
[1755231065153,0.4814,4646.6,4646.4,3.4]
[1755231066072,0.4634,4646.9,4646.4,3.4]
[1755231066260,0.9448,4646.9,4646.4,3.4]
[1755231066663,2.15197963,4646.9,4646.4,3.4]
[1755231067179,0.57063222,4647.3,4646.5,0.02152157]
[1755231067360,0.002,4647.5,4647.2,0.1072]
[1755231067554,0.002,4647.5,4647.2,3.3992]
[1755231068070,0.002,4647.5,4647.2,15.5510262]
[1755231068271,0.002,4647.5,4647.3,0.4319]
[1755231069059,0.002,4647.5,4647.2,10.1072]
[1755231069260,0.002,4647.5,4647.3,3.292]
[1755231069474,0.9468,4647.5,4647.3,3.292]
[1755231069876,2.25844763,4648.5,4647.3,3.292]
[1755231069877,0.57716074,4648.9,4647.4,6.9240622]
[1755231070175,0.4634,4651.2,4648.7,2.70111668]
[1755231070376,0.4634,4651.2,4650.6,0.1072]
[1755231070564,0.4814,4651.7,4650.7,3.307]
[1755231070765,0.1072,4651.8,4650.8,3.33050167]
[1755231071075,0.1072,4651.8,4650.9,1.4367]
[1755231071274,0.1072,4651.8,4650.5,0.4319]
[1755231071575,1.052,4652.4,4651.7,0.1072]
[1755231071779,3.20144214,4652.4,4651.8,3.31]
[1755231071978,1.052,4652.4,4651.8,3.31]
[1755231072176,0.9448,4652.4,4652.2,0.1072]
[1755231072672,2.6128311,4652.4,4652.2,0.1072]
[1755231072874,0.4814,4652.3,4652.2,0.1072]
[1755231073989,0.4634,4652.4,4652.2,0.1072]
[1755231074299,2.14957473,4652.1,4651.6,3.314]
[1755231074576,2.14919727,4652.9,4651.6,3.314]
[1755231074577,0.4814,4653.3,4651.9,0.55]
[1755231074778,2.14861306,4654.2,4652.3,0.55]
[1755231074982,2.14860321,4654.2,4653.0,10.0]
[1755231075274,0.4814,4654.3,4653.3,2.14900928]
[1755231075466,0.4814,4654.3,4653.1,3.323]
[1755231075649,2.14877729,4653.9,4653.2,3.324]
[1755231075844,2.14875684,4653.9,4653.2,3.324]
[1755231076049,0.4814,4654.3,4653.2,3.324]
[1755231076395,0.4814,4654.3,4653.0,10.0]
[1755231076396,2.14907044,4653.2,4653.0,10.0]
[1755231076551,0.9448,4653.1,4653.0,10.0]
[1755231076883,7.365937,4653.1,4653.0,10.0]
[1755231077052,2.14962413,4652.0,4651.9,3.333]
[1755231077253,0.9448,4652.0,4651.5,10.0]
[1755231077596,2.14971896,4651.8,4651.6,3.333]
[1755231077766,0.4814,4651.9,4651.5,10.0]
[1755231077970,0.4634,4651.8,4651.6,3.333]
[1755231078358,2.14961158,4652.1,4651.6,3.333]
[1755231078558,2.14966434,4651.9,4651.6,3.333]
[1755231078858,2.14995874,4651.3,4650.9,3.333]
[1755231079090,2.14982745,4651.6,4650.9,3.333]
[1755231079091,2.14988414,4651.5,4650.9,3.333]
[1755231079301,0.4634,4651.6,4650.9,3.333]
[1755231079802,0.4634,4651.6,4650.8,3.334]
[1755231079803,0.47981705,4651.6,4650.8,3.334]
[1755231080005,2.15012148,4650.9,4650.8,3.334]
[1755231080495,0.01641705,4651.2,4649.7,0.4319]
[1755231080727,2.15016771,4650.8,4649.3,0.4319]
[1755231080872,7.365937,4650.7,4649.4,3.333]
[1755231081076,6.421137,4650.6,4649.4,3.333]
[1755231081273,2.15042764,4650.3,4649.4,3.333]
[1755231081524,0.4814,4650.7,4649.5,3.333]
[1755231081680,0.4814,4650.7,4648.9,0.4319]
[1755231081681,2.1505925,4649.9,4649.6,3.334]
[1755231082276,2.15082574,4649.4,4648.5,5.163]
[1755231082481,0.89,4649.6,4648.5,3.334]
[1755231082677,2.15098584,4649.1,4648.5,3.334]
[1755231083287,2.15090829,4649.2,4648.5,3.334]
[1755231083487,3.04075382,4649.6,4648.0,0.9136]
[1755231083488,2.15076889,4649.5,4648.1,2.15138035]
[1755231083781,2.1509469,4649.2,4648.3,0.55]
[1755231084002,2.15106319,4648.9,4648.2,3.334]
[1755231084174,2.15113741,4648.8,4648.2,3.334]
[1755231084373,2.15114301,4648.7,4648.3,0.55]
[1755231084579,0.01641705,4649.0,4648.7,0.1072]
[1755231084779,2.15134037,4648.3,4647.9,3.333]
[1755231085206,2.15134037,4648.3,4648.2,0.1072]
[1755231087116,2.1509491,4649.2,4648.2,0.1072]
[1755231087117,0.1072,4649.2,4648.2,0.1072]
[1755231087290,6.421137,4649.1,4648.2,0.1072]
[1755231087496,2.15123158,4648.5,4648.4,0.1072]
[1755231087818,2.15117298,4648.7,4648.4,0.1072]
[1755231088014,2.15123158,4648.5,4648.4,0.1072]
[1755231088516,2.15114652,4648.7,4648.4,0.1072]
[1755231088721,2.15108319,4648.9,4648.4,0.1072]
[1755231088887,0.1072,4649.2,4648.4,0.1072]
[1755231089089,0.1072,4649.2,4648.5,3.332]
[1755231089484,0.1072,4649.8,4649.1,0.1072]
[1755231089785,3.332,4650.0,4649.5,0.1072]
[1755231090116,2.15054431,4650.0,4649.5,0.1072]
[1755231090492,0.5613,4650.3,4649.5,0.1072]
[1755231090705,2.25760857,4650.3,4649.5,0.1072]
[1755231090911,0.1072,4650.3,4649.5,0.1072]
[1755231091219,2.15045078,4650.2,4649.5,0.1072]
[1755231091949,2.15049412,4650.1,4649.5,0.1072]
[1755231092921,2.15045066,4650.2,4649.5,0.1072]
[1755231093333,0.4359,4650.6,4650.1,0.1072]
[1755231093518,2.58616807,4650.6,4650.1,0.1072]
[1755231093909,3.04026807,4650.6,4650.1,0.1072]
[1755231094210,0.89,4650.5,4650.1,0.1072]
[1755231094522,2.15039295,4650.4,4650.1,0.1072]
[1755231094940,2.15041385,4650.3,4650.1,0.1072]
[1755231096259,2.15041385,4650.3,4650.1,0.1082]
[1755231096442,2.15035839,4650.4,4650.1,0.1082]
[1755231097624,2.15040816,4650.3,4650.1,0.1082]
[1755231098951,2.15035544,4650.4,4650.1,0.1082]
[1755231099450,0.89,4650.4,4650.1,0.1082]
[1755231099850,3.04035493,4650.4,4650.1,0.1082]
[1755231100057,3.04035861,4650.4,4650.1,0.1082]
[1755231100415,0.89,4650.4,4650.1,0.1082]
[1755231100617,0.45982651,4650.8,4650.1,0.1082]
[1755231100618,2.15016771,4650.8,4650.1,0.1082]
[1755231101554,2.15016771,4650.8,4650.1,0.001]
[1755231101857,2.15016771,4650.8,4650.7,0.1072]
[1755231103628,3.325,4651.5,4650.7,0.1072]
[1755231103840,2.14992827,4651.4,4650.7,0.1072]
[1755231104032,2.14989726,4651.4,4650.5,2.15029911]
[1755231104351,2.14989726,4651.4,4651.0,0.1072]
[1755231104552,2.14985254,4651.5,4651.0,0.1072]
[1755231104761,0.1072,4651.9,4651.0,0.1072]
[1755231104919,0.4359,4651.8,4651.3,0.1072]
[1755231105122,2.14979791,4651.6,4651.3,0.1072]
[1755231105350,0.89,4651.5,4650.4,3.323]
[1755231105539,2.14989035,4651.4,4650.9,0.1072]
[1755231105740,2.14994219,4651.3,4650.9,0.1072]
[1755231106458,0.89,4651.2,4650.9,0.1072]
[1755231106666,2.15004748,4651.1,4650.9,0.1072]
[1755231107031,0.89,4651.1,4650.9,0.1072]
[1755231107727,2.1499994,4651.2,4650.9,0.1072]
[1755231108128,0.89,4651.1,4650.9,0.1072]
[1755231109339,2.14989666,4651.4,4650.9,0.1072]
[1755231109749,0.89,4651.4,4650.9,0.1072]
[1755231110441,2.14980062,4651.6,4650.7,2.15021215]
[1755231110646,2.14980062,4651.6,4651.2,0.1072]
[1755231110856,0.8971053,4651.7,4651.2,0.1072]
[1755231111050,2.14979791,4651.6,4651.2,0.1072]
[1755231111253,3.03979791,4651.6,4651.2,0.1072]
[1755231111654,2.14972261,4651.8,4651.2,0.1072]
[1755231111968,0.4612053,4651.8,4651.5,0.1072]
[1755231112184,4.3152,4652.0,4651.5,0.1072]
[1755231112185,3.4252,4652.0,4651.5,0.1072]
[1755231112388,0.938,4651.7,4651.5,0.1072]
[1755231112687,2.14965927,4651.9,4651.5,0.1072]
[1755231112847,1.0452,4652.0,4651.5,0.1072]
[1755231113047,0.1072,4652.0,4651.5,0.1072]
[1755231113295,0.1072,4652.0,4651.6,2.14975196]
[1755231113485,0.1072,4652.0,4651.6,2.61825196]
[1755231113799,0.4777,4652.4,4651.6,2.61825196]
[1755231113999,0.4777,4652.4,4651.9,0.1072]
[1755231114200,2.14948744,4652.3,4651.9,0.1072]
[1755231114759,0.002,4652.0,4651.9,0.1072]
[1755231118597,0.94,4652.0,4651.9,0.1072]
[1755231119580,3.08961306,4652.0,4651.9,0.1072]
[1755231119767,3.08961306,4652.0,4650.9,0.0439944]
[1755231119768,2.14978879,4651.7,4650.9,0.0439944]
[1755231119962,0.01641705,4651.6,4650.9,0.0439944]
[1755231120161,0.4603,4651.5,4650.9,0.0439944]
[1755231120366,2.14984111,4651.6,4650.9,0.0439944]
[1755231120601,0.002,4652.0,4650.9,0.0439944]
[1755231120768,0.002,4652.0,4651.0,0.02150075]
[1755231120971,2.1516208,4652.0,4651.2,0.55]
[1755231121175,2.14967131,4651.9,4651.0,2.61853018]
[1755231121391,0.002,4652.0,4651.2,5.46597523]
[1755231121577,2.15162287,4652.0,4651.2,5.46597523]
[1755231121963,2.15162287,4652.0,4651.2,3.316]
[1755231122313,0.002,4652.0,4651.2,3.316]
[1755231122680,0.002,4652.0,4651.0,0.4685]
[1755231122681,2.14965927,4651.9,4651.3,3.315]
[1755231123190,2.14971115,4651.8,4651.2,3.315]
[1755231123389,0.002,4652.0,4651.2,3.315]
[1755231123697,2.14966328,4651.9,4651.2,3.315]
[1755231123888,2.1497121,4651.8,4651.2,3.315]
[1755231124598,2.14989327,4651.4,4650.9,0.0439944]
[1755231124773,0.938,4651.9,4651.0,3.314]
[1755231124975,2.61000549,4651.8,4651.0,3.316]
[1755231125175,2.14976398,4651.7,4651.0,3.316]
[1755231125381,2.61001119,4651.8,4651.0,3.316]
[1755231125678,2.14971119,4651.8,4651.0,5.4660669]
[1755231126706,2.14971119,4651.8,4651.0,3.316]
[1755231127199,2.14966202,4651.9,4651.0,3.316]
[1755231127372,2.14966202,4651.9,4651.0,5.46607135]
[1755231127703,2.14971196,4651.8,4651.0,5.46607135]
[1755231127900,2.14971196,4651.8,4651.0,3.316]
[1755231128471,2.1497532,4651.7,4651.0,3.316]
[1755231128780,0.4777,4651.6,4650.9,3.3579944]
[1755231128979,2.14989268,4651.4,4650.9,3.3579944]
[1755231129171,0.938,4651.3,4650.9,0.0439944]
[1755231129367,0.938,4651.2,4650.9,0.0439944]
[1755231129872,0.938,4651.2,4651.1,0.1072]
[1755231130702,1.24678497,4651.2,4651.1,0.1072]
[1755231131300,0.30878497,4651.2,4651.1,0.1072]
[1755231131518,0.1072,4651.8,4651.1,0.1072]
[1755231131812,0.1072,4651.8,4651.3,2.14992828]
[1755231132111,2.14952178,4652.2,4651.7,0.1072]
[1755231132471,0.46315708,4652.4,4651.7,0.1072]
[1755231132809,2.14957771,4652.1,4651.9,0.1072]
[1755231133113,0.47671705,4652.3,4651.9,0.1072]
[1755231133114,0.26482948,4652.0,4651.9,0.1072]
[1755231133413,0.002,4652.0,4651.9,0.1072]
[1755231134795,0.94,4652.0,4651.9,0.1072]
[1755231135405,3.08961306,4652.0,4651.9,0.1072]
[1755231135608,9.51075006,4652.0,4651.5,0.1072]
[1755231135820,2.14979791,4651.6,4651.5,0.1072]
[1755231136213,2.1497559,4651.7,4651.5,0.1072]
[1755231136728,0.938,4651.9,4651.5,0.1072]
[1755231137128,2.14970632,4651.8,4651.5,0.1072]
[1755231137699,3.08770632,4651.8,4651.5,0.1072]
[1755231138031,1.24697063,4651.7,4650.9,0.0439944]
[1755231138219,7.359137,4651.6,4651.2,0.1072]
[1755231138534,2.14991355,4651.4,4651.2,0.1072]
[1755231138722,3.08793657,4651.3,4651.2,0.1072]
[1755231140195,3.08793657,4651.3,4650.9,0.0439944]
[1755231140196,2.15007525,4651.0,4650.9,0.0439944]
[1755231140396,9.11143048,4651.0,4650.9,0.0439944]
[1755231140600,10.49661532,4651.0,4650.9,0.0439944]
[1755231140900,10.03301343,4651.0,4650.9,0.0439944]
[1755231142541,3.61187643,4651.0,4650.9,0.0439944]
[1755231142702,10.03301343,4651.0,4650.9,0.0439944]
[1755231147902,3.61187643,4651.0,4650.9,0.0439944]
[1755231152426,6.91787643,4651.0,4650.9,0.0439944]
[1755231152631,3.15157643,4651.0,4650.9,0.0439944]
[1755231152841,6.45657643,4651.0,4650.9,0.0439944]
[1755231153032,2.67387643,4651.0,4650.9,0.0439944]
[1755231153340,5.97887643,4651.0,4650.9,0.0439944]
[1755231154317,5.45407525,4651.0,4650.9,0.0439944]
[1755231157180,6.39437525,4651.0,4650.9,0.0439944]
[1755231157477,6.50157525,4651.0,4650.9,0.0439944]
[1755231157640,2.15007525,4651.0,4650.9,0.0439944]
[1755231157845,5.4714923,4651.0,4650.9,0.0439944]
[1755231158045,5.45507525,4651.0,4650.9,0.0439944]
[1755231158345,7.26472503,4651.0,4650.9,0.0439944]
[1755231161645,3.01942503,4651.0,4650.9,0.0439944]
[1755231161852,7.26672503,4651.0,4650.9,0.0439944]
[1755231162257,3.19757525,4651.0,4650.9,0.0439944]
[1755231162655,6.50357525,4651.0,4650.9,0.0439944]
[1755231163556,12.92471225,4651.0,4650.9,0.0439944]
[1755231164158,13.38807104,4651.0,4650.9,0.0439944]
[1755231171262,12.44777104,4651.0,4650.9,0.0439944]
[1755231171969,13.39527104,4651.0,4650.9,0.0439944]
[1755231172692,10.08927104,4651.0,4650.9,0.0439944]
[1755231172992,13.38927104,4651.0,4650.9,0.0439944]
[1755231173193,10.08927104,4651.0,4650.9,0.0439944]
[1755231173683,13.38927104,4651.0,4650.9,0.0439944]
[1755231175477,12.44177104,4651.0,4650.9,0.0439944]
[1755231175674,6.421137,4650.9,4648.3,0.461]
[1755231175993,2.15044514,4650.2,4648.1,0.001]
[1755231176195,12.35335798,4650.2,4648.9,0.461]
[1755231176394,12.33694093,4650.2,4649.1,0.462]
[1755231176694,0.46335879,4650.2,4650.1,0.462]
[1755231176881,2.15021091,4650.8,4650.1,0.9498]
[1755231177080,2.15012321,4650.9,4650.2,0.9488]
[1755231177291,5.45312321,4650.9,4650.2,0.79793341]
[1755231177469,5.45312321,4650.9,4650.3,0.9488]
[1755231177664,5.45312321,4650.9,4650.4,0.461]
[1755231177894,5.45312321,4650.9,4650.5,0.4878]
[1755231178201,5.45312321,4650.9,4650.6,0.9488]
[1755231178505,3.302,4650.8,4650.7,0.461]
[1755231178803,2.15016771,4650.8,4650.7,0.461]
[1755231178992,5.45216771,4650.8,4650.7,0.461]
[1755231179394,5.91614967,4650.8,4650.4,0.461]
[1755231179593,5.45216771,4650.8,4650.2,0.4878]
[1755231179770,5.45216771,4650.8,4650.1,0.001]
[1755231179771,2.15026606,4650.6,4650.1,0.001]
[1755231179969,5.45226606,4650.6,4650.1,0.001]
[1755231180167,5.45226606,4650.6,4650.1,0.462]
[1755231180504,5.45226606,4650.6,4650.1,0.001]
[1755231180505,2.15040768,4650.3,4650.1,0.001]
[1755231180806,5.45340768,4650.3,4650.1,0.001]
[1755231181204,3.303,4650.3,4650.1,0.462]
[1755231181577,5.45340823,4650.3,4650.1,0.462]
[1755231182108,3.303,4650.3,4650.1,0.462]
[1755231182312,2.73008204,4651.3,4650.2,0.9488]
[1755231182486,2.15018378,4650.8,4650.3,0.461]
[1755231182680,2.15021759,4650.7,4650.1,0.001]
[1755231182912,3.302,4650.8,4650.1,0.001]
[1755231183075,3.302,4650.8,4650.2,0.9488]
[1755231183275,0.9475,4650.7,4650.1,0.001]
[1755231183506,2.15033113,4650.5,4650.1,0.001]
[1755231184176,3.301,4650.4,4650.1,0.001]
[1755231184597,2.15044514,4650.2,4650.1,0.001]
[1755231185310,0.01641705,4650.3,4650.1,0.001]
[1755231185311,2.15039914,4650.3,4650.1,0.001]
[1755231185605,5.4513553,4650.4,4650.1,0.001]
[1755231185768,2.15040475,4650.3,4650.1,0.1082]
[1755231187183,2.15035673,4650.4,4650.1,0.1082]
[1755231187422,3.3,4650.3,4650.1,0.1082]
[1755231187720,5.45039955,4650.3,4650.1,0.1082]
[1755231188083,3.09794514,4650.2,4650.1,0.001]
[1755231188315,5.44944514,4650.2,4650.1,0.001]
[1755231191017,2.15044514,4650.2,4650.1,0.001]
[1755231191203,5.45044514,4650.2,4650.1,0.001]
[1755231192930,6.39794514,4650.2,4650.1,0.001]
[1755231193130,14.24512775,4650.2,4650.1,0.001]
[1755231194852,2.15049138,4650.1,4649.5,1e-08]
[1755231195016,2.92400529,4649.6,4649.5,1e-08]
[1755231195215,12.29562518,4649.6,4649.5,1e-08]
[1755231195459,13.69072228,4649.6,4649.5,1e-08]
[1755231196014,10.39072228,4649.6,4649.5,1e-08]
[1755231196320,13.69072228,4649.6,4649.5,1e-08]
[1755231197267,2.72193679,4649.6,4649.5,1e-08]
[1755231197572,2.25792264,4649.6,4649.5,1e-08]
[1755231197858,2.15072264,4649.6,4649.5,1e-08]
[1755231198048,5.45172264,4649.6,4649.5,1e-08]
[1755231199220,6.39922264,4649.6,4649.5,1e-08]
[1755231199440,7.26492963,4649.6,4649.5,1e-08]
[1755231202164,13.68606663,4649.6,4649.5,1e-08]
[1755231202335,14.31192706,4649.6,4649.5,1e-08]
[1755231203650,2.1511853,4648.6,4646.6,0.4602]
[1755231203851,2.25857042,4648.2,4647.2,0.1072]
[1755231204079,12.56023951,4648.2,4648.1,1e-08]
[1755231204234,13.6240606,4648.2,4648.1,1e-08]
[1755231204435,2.15211122,4646.6,4646.5,0.108]
[1755231204670,3.303,4646.6,4646.5,0.108]
[1755231204970,3.303,4646.6,4646.5,0.5772]
[1755231205266,5.45511122,4646.6,4646.1,0.108]
[1755231205467,3.303,4646.6,4646.2,0.4692]
[1755231205772,3.303,4646.6,4646.3,0.4692]
[1755231205939,3.303,4646.6,4646.2,0.4602]
[1755231206135,3.303,4646.6,4646.3,0.4692]
[1755231207732,3.302,4646.8,4646.4,0.9294]
[1755231207936,3.302,4646.8,4646.5,0.5772]
[1755231208137,2.15193697,4647.0,4646.6,0.4692]
[1755231208385,5.45397393,4646.9,4646.5,0.108]
[1755231208540,2.15202827,4646.8,4646.5,0.108]
[1755231208945,2.15206761,4646.7,4646.5,0.108]
[1755231209173,3.302,4646.9,4646.5,0.108]
[1755231209463,5.45397474,4646.9,4646.5,0.108]
[1755231209881,3.302,4646.9,4646.6,0.4692]
[1755231210035,3.302,4646.9,4646.7,0.4692]
[1755231210239,0.1072,4647.5,4646.8,0.5772]
[1755231210480,3.302,4647.4,4646.8,1.0374]
[1755231210778,2.25889565,4647.5,4646.8,1.0374]
[1755231210942,3.302,4647.3,4646.8,1.0374]
[1755231211272,3.302,4647.3,4646.9,0.4692]
[1755231211480,3.302,4647.3,4647.2,0.1072]
[1755231211849,2.15178705,4647.3,4647.2,0.1072]
[1755231212154,5.45378705,4647.3,4647.2,0.1072]
[1755231212359,3.302,4647.3,4647.2,0.1072]
[1755231212560,5.45378705,4647.3,4647.2,0.1072]
[1755231213073,3.302,4647.3,4647.2,0.1072]
[1755231213671,5.45378705,4647.3,4647.2,0.1072]
[1755231214771,3.301,4647.3,4647.2,0.1072]
[1755231214971,2.1517384,4647.5,4647.2,0.1072]
[1755231215174,2.15178705,4647.3,4647.2,0.1072]
[1755231215371,2.15186693,4647.2,4646.8,0.108]
[1755231215574,3.3,4647.1,4646.8,0.108]
[1755231217450,2.15197228,4646.9,4646.8,0.108]
[1755231217769,2.15192878,4647.0,4646.8,0.108]
[1755231217974,6.36408285,4647.1,4646.8,0.108]
[1755231218170,3.3,4647.1,4646.8,0.108]
[1755231218784,5.45190885,4647.1,4646.8,0.108]
[1755231219155,3.3,4647.1,4646.8,0.108]
[1755231219745,5.45188606,4647.1,4646.8,0.108]
[1755231220356,2.15197228,4646.9,4646.8,0.108]
[1755231220557,3.299,4646.9,4646.8,0.108]
[1755231221791,3.299,4647.0,4646.8,0.108]
[1755231221953,3.299,4647.0,4646.8,0.5772]
[1755231222155,3.298,4647.3,4646.8,0.5772]
[1755231222356,5.44979102,4647.3,4646.8,0.5772]
[1755231222655,5.44979102,4647.3,4646.8,0.108]
[1755231223095,2.15183526,4647.2,4646.8,0.108]
[1755231223293,2.15188143,4647.1,4646.8,0.108]
[1755231223525,2.15197228,4646.9,4645.7,0.4692]
[1755231223784,3.304,4646.8,4646.5,0.108]
[1755231224185,2.25904654,4647.2,4646.5,0.108]
[1755231224186,2.15190827,4647.1,4646.5,0.108]
[1755231224353,5.45590827,4647.1,4646.5,0.5772]
[1755231224559,2.15192669,4647.0,4646.5,0.5772]
[1755231224981,3.304,4647.1,4646.5,0.5772]
[1755231225288,2.25897826,4647.4,4646.8,0.108]
[1755231225585,5.45579362,4647.3,4646.8,0.108]
[1755231226483,2.15183635,4647.2,4646.8,0.108]
[1755231226688,5.4557932,4647.3,4646.8,0.108]
[1755231226865,3.304,4647.3,4646.8,0.108]
[1755231227969,2.15197228,4646.9,4646.8,0.108]
[1755231228176,1.0194,4647.2,4646.6,0.108]
[1755231228479,2.15193652,4647.0,4646.6,0.108]
[1755231228674,5.45493652,4647.0,4646.6,0.108]
[1755231228879,6.36713652,4647.0,4646.6,0.108]
[1755231229080,0.9122,4646.9,4646.6,0.108]
[1755231229292,2.1520649,4646.7,4646.6,0.108]
[1755231229676,2.15216064,4646.5,4646.2,0.108]
[1755231230063,3.064412,4646.4,4646.2,0.108]
[1755231230689,0.9122,4646.3,4646.2,0.108]
[1755231231294,3.303,4646.5,4646.2,0.108]
[1755231231673,4.2212,4646.5,4646.2,0.108]
[1755231231874,0.4641,4646.4,4646.2,0.108]
[1755231232171,0.9182,4646.4,4646.2,0.108]
[1755231233292,1.38267416,4646.4,4646.2,0.108]
[1755231233459,0.9182,4646.3,4646.2,0.108]
[1755231234491,0.4541,4646.3,4646.2,0.108]
[1755231234792,5.91964692,4646.5,4646.2,0.108]
[1755231234958,2.15225017,4646.3,4646.2,0.108]
[1755231235465,3.07045017,4646.3,4646.2,0.108]
[1755231235663,3.302,4646.3,4646.2,0.108]
[1755231235876,3.76647416,4646.3,4646.2,0.108]
[1755231236415,3.302,4646.3,4646.2,0.108]
[1755231237283,3.76647416,4646.3,4646.2,0.108]
[1755231237889,5.91872433,4646.3,4646.2,0.108]
[1755231238419,3.76647416,4646.3,4646.2,0.108]
[1755231238715,2.1521963,4646.5,4646.2,0.108]
[1755231238716,3.76447416,4646.4,4646.2,0.108]
[1755231239783,3.3,4646.4,4646.2,0.108]
[1755231239980,3.76447416,4646.4,4646.2,0.108]
[1755231240285,2.25917906,4646.9,4646.2,0.108]
[1755231240484,3.3,4647.1,4646.8,0.108]
[1755231241318,0.9182,4647.0,4646.8,0.108]
[1755231241514,5.45197228,4646.9,4646.8,0.108]
[1755231241683,6.83441401,4646.9,4646.8,0.108]
[1755231241884,2.15205153,4646.8,4646.5,0.108]
[1755231242084,2.15211122,4646.6,4645.8,0.001]
[1755231242283,3.3,4646.7,4646.2,0.108]
[1755231242284,3.31641705,4646.5,4646.2,0.108]
[1755231242510,3.3,4646.5,4646.0,0.108]
[1755231242706,2.15222039,4646.4,4646.0,0.108]
[1755231242911,3.301,4646.3,4646.0,0.108]
[1755231243416,4.2192,4646.3,4646.0,0.108]
[1755231243920,2.15234282,4646.1,4646.0,0.108]
[1755231244118,1.38248192,4646.2,4646.0,0.108]
[1755231244419,0.9182,4646.2,4646.0,0.108]
[1755231244985,3.299,4646.2,4646.0,0.108]
[1755231246510,3.298,4646.4,4646.0,0.108]
[1755231246708,0.108,4646.7,4646.0,0.108]
[1755231246909,3.298,4646.8,4646.3,0.108]
[1755231247232,3.298,4646.8,4646.3,2.1522467]
[1755231247391,3.298,4646.8,4646.3,2.15224914]
[1755231247718,3.298,4646.8,4646.3,0.4316]
[1755231247921,3.299,4646.9,4646.1,2.15233649]
[1755231248113,3.299,4646.9,4645.8,2.5850538]
[1755231248114,3.299,4646.9,4646.6,0.108]
[1755231249439,5.45097367,4646.9,4646.6,0.108]
[1755231249606,5.45097515,4646.9,4646.6,0.108]
[1755231249928,3.299,4646.9,4646.6,0.108]
[1755231250427,0.1072,4647.2,4646.6,0.108]
[1755231250428,2.15192644,4647.0,4646.6,0.108]